[Event "Winter Chess Classic-B 2019"]
[Site "Saint Louis"]
[Date "2019.11.12"]
[Round "3.2"]
[White "Moradiabadi, Elshan"]
[Black "Khachiyan, Melikset"]
[Result "1/2-1/2"]
[ECO "C75"]
[WhiteElo "2552"]
[BlackElo "2493"]
[Annotator "RC"]
[PlyCount "75"]
[EventDate "2019.11.10"]
[EventType "tourn"]
[EventCountry "USA"]
[SourceTitle "playchess.com"]
[Source "ChessBase"]
[SourceQuality "1"]
[TimeControl "40/5400+30:1800+30"]

1. e4 {[%emt 0:00:00]} e5 {[%emt 0:01:15]} 2. Nf3 {[%emt 0:00:00]} Nc6 {[%emt 0:00:08]} 3. Bb5 {[%emt 0:00:00]} a6 {[%emt 0:00:19]} 4. Ba4 {[%emt 0:00:00]} Nge7 {[%emt 0:01:53]} 5. c3 {[%emt 0:05:47]} d6 {[%emt 0:01:48]} 6. d4 {[%emt 0:00:28]} Bd7 {[%emt 0:00:04]} 7. d5 {[%emt 0:02:06]} Nb8 {[%emt 0:00:08]} 8. c4 {[%emt 0:00:03]} Ng6 {[%emt 0:00:20]} 9. Nc3 {[%emt 0:00:47]} Be7 {[%emt 0:00:07]} 10. Be3 {[%emt 0:00:34]} h6 {[%emt 0:00:21]} 11. Bxd7+ {[%emt 0:01:12]} Nxd7 {[%emt 0:00:13]} 12. g3 {[%emt 0:00:07]} O-O {[%emt 0:05:35]} 13. h4 {[%emt 0:00:55]} f5 {[%emt 0:08:18]} 14. exf5 {[%emt 0:01:13]} Rxf5 {[%emt 0:00:07]} 15. h5 {[%emt 0:00:21]} Ngf8 {[%emt 0:01:01]} 16. Ne4 {[%emt 0:08:26]} Rf7 {[%emt 0:02:29]} 17. Nfd2 {[%emt 0:05:23]} Nh7 {[%emt 0:03:00]} 18. Qg4 {[%emt 0:00:28]} Bg5 {[%emt 0:08:02]} 19. f4 {[%emt 0:24:36]} exf4 {[%emt 0:08:29]} 20. gxf4 {[%emt 0:00:02]} Ne5 {[%emt 0:00:10]} 21. fxe5 {[%emt 0:06:30]} Bxe3 {[%emt 0:00:21]} 22. e6 {[%emt 0:00:04]} Rf4 {[%emt 0:00:04]} 23. Qg3 {[%emt 0:00:07]} Bxd2+ {[%emt 0:00:14]} 24. Nxd2 {[%emt 0:00:06]} Qg5 {[%emt 0:01:37]} 25. Qxg5 {[%emt 0:02:29]} Nxg5 {[%emt 0:00:07]} 26. Ke2 {[%emt 0:00:03]} c6 {[%emt 0:09:17]} 27. Raf1 {[%emt 0:03:35]} Rg4 {[%emt 0:00:32]} 28. Rfg1 {[%emt 0:09:05]} Rf4 {[%emt 0:05:12]} 29. Rf1 {[%emt 0:04:59]} Rg4 {[%emt 0:00:05]} 30. Rhg1 {[%emt 0:00:02]} Rh4 {[%emt 0:13:59]} 31. Nf3 {[%emt 0:00:10]} Nxf3 {[%emt 0:02:28]} 32. Rxf3 {[%emt 0:00:00]} Rxh5 {[%emt 0:03:30]} 33. Rf7 {[%emt 0:00:18]} Re5+ {[%emt 0:00:05]} 34. Kd3 {[%emt 0:09:56]} g5 {[%emt 0:00:17]} 35. Rgf1 {[%emt 0:00:07]} Re8 {[%emt 0:01:52]} 36. Kd4 {[%emt 0:00:01]} g4 {[%emt 0:12:39]} 37. R1f6 {[%emt 0:04:33]} Rg5 {[%emt 0:02:57]} 38. e7 {[%emt 0:07:27]} 1/2-1/2

[Event "Winter Chess Classic-B 2019"]
[Site "Saint Louis"]
[Date "2019.11.17"]
[Round "8.1"]
[White "Erenburg, Sergey"]
[Black "Harutyunian, Tigran K."]
[Result "1/2-1/2"]
[ECO "C65"]
[WhiteElo "2581"]
[BlackElo "2542"]
[Annotator "RC"]
[PlyCount "149"]
[EventDate "2019.11.10"]
[EventType "tourn"]
[EventCountry "USA"]
[SourceTitle "playchess.com"]
[Source "ChessBase"]
[SourceQuality "1"]
[TimeControl "40/5400+30:1800+30"]

1. e4 {[%emt 0:00:00]} e5 {[%emt 0:00:00]} 2. Nf3 {[%emt 0:00:00]} Nc6 {[%emt 0:00:05]} 3. Bb5 {[%emt 0:00:00]} Nf6 {[%emt 0:00:22]} 4. d3 {[%emt 0:00:00]} Bc5 {[%emt 0:00:42]} 5. c3 {[%emt 0:00:00]} O-O {[%emt 0:00:59]} 6. O-O {[%emt 0:00:15]} Re8 {[%emt 0:02:34]} 7. Nbd2 {[%emt 0:01:29]} a6 {[%emt 0:02:21]} 8. Bxc6 {[%emt 0:01:04]} dxc6 {[%emt 0:00:34]} 9. Nc4 {[%emt 0:00:10]} Nd7 {[%emt 0:03:09]} 10. Re1 {[%emt 0:05:45]} b5 {[%emt 0:09:49]} 11. Ncxe5 {[%emt 0:16:00]} Nxe5 {[%emt 0:06:14]} 12. Nxe5 {[%emt 0:00:19]} Bxf2+ {[%emt 0:00:26]} 13. Kxf2 {[%emt 0:00:09]} Rxe5 {[%emt 0:00:06]} 14. Bf4 {[%emt 0:00:53]} Re6 {[%emt 0:04:21]} 15. Kg1 {[%emt 0:08:00]} c5 {[%emt 0:02:05]} 16. Qh5 {[%emt 0:03:29]} Qe7 {[%emt 0:04:27]} 17. a4 {[%emt 0:01:24]} Rb8 {[%emt 0:06:36]} 18. axb5 {[%emt 0:03:29]} Rxb5 {[%emt 0:06:50]} 19. Qe2 {[%emt 0:01:29]} c4 {[%emt 0:01:58]} 20. dxc4 {[%emt 0:02:24]} Rb3 {[%emt 0:01:01]} 21. Rad1 {[%emt 0:11:32]} h6 {[%emt 0:06:15]} 22. Qc2 {[%emt 0:21:31]} Reb6 {[%emt 0:01:52]} 23. Qd3 {[%emt 0:04:24]} Be6 {[%emt 0:01:18]} 24. Qd8+ {[%emt 0:08:22]} Qxd8 {[%emt 0:00:53]} 25. Rxd8+ {[%emt 0:00:01]} Kh7 {[%emt 0:00:11]} 26. Bxc7 {[%emt 0:04:32]} Rb7 {[%emt 0:04:02]} 27. Bf4 {[%emt 0:03:16]} Rxb2 {[%emt 0:09:27]} 28. c5 {[%emt 0:00:01]} Rc2 {[%emt 0:01:32]} 29. c6 {[%emt 0:00:48]} Rb3 {[%emt 0:00:48]} 30. c7 {[%emt 0:02:06]} Rbxc3 {[%emt 0:00:39]} 31. Red1 {[%emt 0:01:22]} Re2 {[%emt 0:01:53]} 32. R8d3 {[%emt 0:01:10]} Rxd3 {[%emt 0:01:59]} 33. Rxd3 {[%emt 0:00:01]} Rxe4 {[%emt 0:00:09]} 34. Rd6 {[%emt 0:00:58]} Rxf4 {[%emt 0:05:07]} 35. Rxe6 {[%emt 0:00:03]} Rc4 {[%emt 0:00:18]} 36. Rxa6 {[%emt 0:00:06]} Rxc7 {[%emt 0:00:06]} 37. Ra4 {[%emt 0:00:25]} g5 {[%emt 0:00:21]} 38. h4 {[%emt 0:00:21]} Kg6 {[%emt 0:01:10]} 39. hxg5 {[%emt 0:00:02]} hxg5 {[%emt 0:00:09]} 40. Kf2 {[%emt 0:00:00]} Kh5 {[%emt 0:00:00]} 41. Rb4 {[%emt 0:03:08]} Rc2+ {[%emt 0:02:00]} 42. Kf3 {[%emt 0:07:02]} Ra2 {[%emt 0:04:42]} 43. Rc4 {[%emt 0:00:13]} f6 {[%emt 0:01:46]} 44. Rb4 {[%emt 0:01:09]} g4+ {[%emt 0:00:13]} 45. Kg3 {[%emt 0:00:28]} Ra3+ {[%emt 0:01:10]} 46. Kh2 {[%emt 0:08:12]} Kh4 {[%emt 0:00:50]} 47. Rf4 {[%emt 0:00:41]} Kg5 {[%emt 0:00:43]} 48. g3 {[%emt 0:02:31]} Ra2+ {[%emt 0:00:22]} 49. Kg1 {[%emt 0:00:01]} f5 {[%emt 0:00:14]} 50. Kf1 {[%emt 0:01:08]} Kf6 {[%emt 0:00:23]} 51. Kg1 {[%emt 0:01:06]} Ke5 {[%emt 0:00:08]} 52. Rf1 {[%emt 0:01:08]} Rd2 {[%emt 0:00:22]} 53. Re1+ {[%emt 0:00:43]} Kd4 {[%emt 0:00:43]} 54. Rf1 Ke4 {[%emt 0:00:33]} 55. Rf4+ {[%emt 0:00:19]} Ke5 {[%emt 0:00:05]} 56. Rf1 {[%emt 0:00:15]} Ra2 {[%emt 0:01:27]} 57. Rf4 {[%emt 0:00:15]} Ra5 {[%emt 0:00:05]} 58. Kg2 {[%emt 0:00:12]} Rb5 {[%emt 0:00:29]} 59. Kg1 {[%emt 0:00:17]} Rd5 {[%emt 0:00:10]} 60. Kg2 {[%emt 0:00:13]} Rd2+ {[%emt 0:01:13]} 61. Kg1 {[%emt 0:00:18]} Re2 {[%emt 0:00:43]} 62. Kf1 {[%emt 0:00:51]} Re3 {[%emt 0:00:09]} 63. Kg2 {[%emt 0:00:05]} Ke6 {[%emt 0:00:05]} 64. Rf2 {[%emt 0:00:18]} Re5 {[%emt 0:00:08]} 65. Kf1 {[%emt 0:00:52]} Ra5 {[%emt 0:00:39]} 66. Kg2 {[%emt 0:00:12]} Ke5 {[%emt 0:00:06]} 67. Rf4 {[%emt 0:00:08]} Ra2+ {[%emt 0:00:04]} 68. Kg1 {[%emt 0:00:18]} Rd2 {[%emt 0:00:05]} 69. Kf1 {[%emt 0:00:20]} Rd4 {[%emt 0:00:14]} 70. Rf2 {[%emt 0:00:11]} Ke4 {[%emt 0:00:07]} 71. Rf4+ {[%emt 0:00:06]} Ke3 {[%emt 0:00:11]} 72. Rxf5 {[%emt 0:00:17]} Rd1+ {[%emt 0:00:03]} 73. Kg2 {[%emt 0:00:07]} Rd2+ {[%emt 0:00:03]} 74. Kg1 {[%emt 0:00:11]} Rd1+ {[%emt 0:00:03]} 75. Kg2 {[%emt 0:00:07]} 1/2-1/2